fUST/lending_fUST_20250628
["ID","MTS","AMOUNT","RATE_DAILY","PERIOD"]
[368279900,1751087447533,-1000.0,0.00020865,2]
[368279901,1751087447542,-8927.03936832,0.00020866,4]
[368279902,1751087447552,-1500.0,0.00020891,2]
[368279903,1751087447561,-690.642,0.00020915,2]
[368279904,1751087447571,-500.0,0.00020958,15]
[368279905,1751087447580,-716.195754,0.0002097,2]
[368279906,1751087447589,-304.0,0.00020971,3]
[368279907,1751087447599,-742.6949969,0.00021025,2]
[368279908,1751087447608,-770.17471178,0.0002108,2]
[368279909,1751087447617,-476.08,0.00021095,2]
[368279910,1751087447627,-460.0,0.00021095,2]
[368279911,1751087447637,-775.28,0.00021095,2]
[368279912,1751087447647,-460.0,0.00021095,2]
[368279913,1751087447656,-460.0,0.00021095,2]
[368279914,1751087447666,-1498.86,0.00021095,2]
[368279915,1751087447675,-712.04,0.00021095,2]
[368279916,1751087447684,-460.0,0.00021095,2]
[368279917,1751087447694,-460.0,0.00021095,2]
[368279918,1751087447704,-2034.3,0.00021095,2]
[368279919,1751087447714,-2478.78,0.00021095,2]
[368279920,1751087447724,-612.52,0.00021095,2]
[368279921,1751087447735,-460.0,0.00021095,2]
[368279922,1751087447744,-683.5,0.00021095,2]
[368279923,1751087447754,-2556.56,0.00021095,2]
[368279924,1751087447763,-474.62,0.00021095,2]
[368279925,1751087447773,-460.0,0.00021095,2]
[368279926,1751087447782,-763.79,0.00021095,2]
[368279927,1751087447791,-518.99,0.00021095,2]
[368279928,1751087447804,-460.0,0.00021095,2]
[368279929,1751087447813,-460.0,0.00021095,2]
[368279930,1751087447823,-2327.45,0.00021095,2]
[368279931,1751087447832,-460.0,0.00021095,2]
[368279932,1751087447842,-460.0,0.00021095,2]
[368279933,1751087447851,-460.0,0.00021095,2]
[368279934,1751087447861,-2679.76,0.00021095,2]
[368279935,1751087447870,-460.0,0.00021095,2]
[368279936,1751087447880,-478.22,0.00021095,2]
[368279937,1751087447890,-460.0,0.00021095,2]
[368279938,1751087447900,-2100.28,0.00021095,2]
[368279939,1751087447910,-460.0,0.00021095,2]
[368279940,1751087447920,-460.0,0.00021095,2]
[368279941,1751087447930,-1102.85,0.00021095,2]
[368279942,1751087447939,-2998.79,0.00021095,2]
[368279943,1751087447949,-460.0,0.00021095,2]
[368279944,1751087447958,-1008.33,0.00021095,2]
[368279945,1751087447968,-460.0,0.00021095,2]
[368279946,1751087447977,-460.0,0.00021095,2]
[368279947,1751087447987,-1774.18,0.00021095,2]
[368279948,1751087447997,-460.0,0.00021095,2]
[368279949,1751087448006,-460.0,0.00021095,2]
[368279950,1751087448015,-519.19,0.00021095,2]
[368279951,1751087448024,-1953.73,0.00021095,2]
[368279952,1751087448034,-2125.58,0.00021095,2]
[368279953,1751087448043,-841.77,0.00021095,2]
[368279954,1751087448052,-1316.31,0.00021095,2]
[368279955,1751087448061,-460.0,0.00021095,2]
[368279956,1751087448071,-460.0,0.00021095,2]
[368279957,1751087448080,-460.0,0.00021095,2]
[368279958,1751087448089,-756.38,0.00021095,2]
[368279959,1751087448097,-460.0,0.00021095,2]
[368279960,1751087448107,-735.92,0.00021095,2]
[368279961,1751087448116,-4060.56,0.00021095,2]
[368279962,1751087448125,-460.0,0.00021095,2]
[368279963,1751087448135,-332.51731225,0.00021095,2]
[368279964,1751087448145,-4380.7,0.00021095,2]
[368279965,1751087448155,-566.08,0.00021095,2]
[368279966,1751087448164,-510.75,0.00021095,2]
[368279967,1751087448174,-1874.02,0.00021095,2]
[368279968,1751087448183,-477.85,0.00021095,2]
[368279969,1751087448193,-1714.33,0.00021095,2]
[368279970,1751087448202,-460.0,0.00021095,2]
[368279971,1751087448211,-1029.75,0.00021095,2]
[368279972,1751087448221,-1422.98,0.00021095,2]
[368279973,1751087448230,-987.09,0.00021095,2]
[368279974,1751087448240,-460.0,0.00021095,2]
[368279975,1751087448250,-8927.03936832,0.00021107,4]
[368279976,1751087448259,-798.67117612,0.00021135,2]
[368279977,1751087448269,-828.22200964,0.0002119,2]
[368279978,1751087448278,-159.266168,0.00021205,2]
[368279979,1751087448287,-159.266168,0.00021205,2]
[368279980,1751087448297,-159.266168,0.00021205,2]
[368279981,1751087448306,-240.94687,0.00021205,2]
[368279982,1751087448316,-318.2850409,0.00021205,2]
[368279983,1751087448325,-304.0,0.00021214,4]
[368279984,1751087448335,-858.86622399,0.00021245,2]
[368279985,1751087448344,-890.64427428,0.000213,2]
[368279986,1751087448354,-2025.49537704,0.00021332,2]
[368279987,1751087448363,-8927.03936832,0.00021348,5]
[368279988,1751087448373,-923.59811243,0.00021355,2]
[368279989,1751087448382,-476.08,0.00021369,2]
[368279990,1751087448391,-460.0,0.00021369,2]
[368279991,1751087448400,-500.0,0.00021369,16]
[368279992,1751087448409,-775.28,0.00021369,2]
[368279993,1751087448418,-460.0,0.00021369,2]
[368279994,1751087448428,-460.0,0.00021369,2]
[368279995,1751087448438,-1498.86,0.00021369,2]
[368279996,1751087448447,-712.04,0.00021369,2]
[368279997,1751087448456,-460.0,0.00021369,2]
[368279998,1751087448465,-460.0,0.00021369,2]
[368279999,1751087448475,-2034.3,0.00021369,2]
[368280000,1751087448484,-2478.78,0.00021369,2]
[368280001,1751087448494,-612.52,0.00021369,2]
[368280002,1751087448503,-460.0,0.00021369,2]
[368280003,1751087448513,-683.5,0.00021369,2]
[368280004,1751087448523,-2556.56,0.00021369,2]
[368280005,1751087448533,-474.62,0.00021369,2]
[368280006,1751087448542,-460.0,0.00021369,2]
[368280007,1751087448552,-763.79,0.00021369,2]
[368280008,1751087448561,-518.99,0.00021369,2]
[368280009,1751087448571,-370.20535212,0.00021369,2]
[368280010,1751087448581,-460.0,0.00021369,2]
[368280011,1751087448590,-2327.45,0.00021369,2]
[368280012,1751087448599,-460.0,0.00021369,2]
[368280013,1751087448609,-460.0,0.00021369,2]
[368280014,1751087448618,-460.0,0.00021369,2]
[368280015,1751087448628,-2679.76,0.00021369,2]
[368280016,1751087448637,-460.0,0.00021369,2]
[368280017,1751087448647,-478.22,0.00021369,2]
[368280018,1751087448657,-460.0,0.00021369,2]
[368280019,1751087448666,-2100.28,0.00021369,2]
[368280020,1751087448675,-460.0,0.00021369,2]
[368280021,1751087448685,-460.0,0.00021369,2]
[368280022,1751087448694,-1102.85,0.00021369,2]
[368280023,1751087448703,-2998.79,0.00021369,2]
[368280024,1751087448713,-460.0,0.00021369,2]
[368280025,1751087448722,-1008.33,0.00021369,2]
[368280026,1751087448731,-460.0,0.00021369,2]
[368280027,1751087448741,-460.0,0.00021369,2]
[368280028,1751087448751,-1774.18,0.00021369,2]
[368280029,1751087448760,-460.0,0.00021369,2]
[368280030,1751087448770,-285.03360379,0.00021369,2]
[368280031,1751087448779,-519.19,0.00021369,2]
[368280032,1751087448788,-1953.73,0.00021369,2]
[368280033,1751087448799,-2125.58,0.00021369,2]
[368280034,1751087448811,-841.77,0.00021369,2]
[368280035,1751087448821,-1316.31,0.00021369,2]
[368280036,1751087448831,-460.0,0.00021369,2]
[368280037,1751087448840,-460.0,0.00021369,2]
[368280038,1751087448849,-756.38,0.00021369,2]
[368280039,1751087448861,-460.0,0.00021369,2]
[368280040,1751087448871,-735.92,0.00021369,2]
[368280041,1751087448880,-4060.56,0.00021369,2]
[368280042,1751087448889,-460.0,0.00021369,2]
[368280043,1751087448899,-4380.7,0.00021369,2]
[368280044,1751087448908,-566.08,0.00021369,2]
[368280045,1751087448917,-510.75,0.00021369,2]
[368280046,1751087448926,-1874.02,0.00021369,2]
[368280047,1751087448936,-477.85,0.00021369,2]
[368280048,1751087448945,-1714.33,0.00021369,2]
[368280049,1751087448955,-460.0,0.00021369,2]
[368280050,1751087448964,-1029.75,0.00021369,2]
[368280051,1751087448974,-1422.98,0.00021369,2]
[368280052,1751087448983,-987.09,0.00021369,2]
[368280053,1751087448992,-460.0,0.00021369,2]
[368280054,1751087449002,-151.0,0.000214,3]
[368280055,1751087449012,-5000.0,0.00021408,2]
[368280056,1751087449021,-542.637,0.00021409,2]
[368280057,1751087449030,-510.92419968,0.0002141,2]
[368280058,1751087449040,-500.0,0.00021439,2]
[368280059,1751087449049,-304.0,0.00021457,4]
[368280060,1751087449059,-151.0,0.000215,3]
[368280061,1751087449069,-482.784213,0.0002156,4]
[368280062,1751087449079,-8927.03936832,0.0002159,5]
[368280063,1751087449088,-160.0,0.00021612,4]
[368280064,1751087449098,-476.08,0.00021643,2]
[368280065,1751087449108,-460.0,0.00021643,2]
[368280066,1751087449118,-775.28,0.00021643,2]
[368280067,1751087449128,-460.0,0.00021643,2]
[368280068,1751087449138,-460.0,0.00021643,2]
[368280069,1751087449148,-1498.86,0.00021643,2]
[368280070,1751087449158,-712.04,0.00021643,2]
[368280071,1751087449168,-460.0,0.00021643,2]
[368280072,1751087449178,-460.0,0.00021643,2]
[368280073,1751087449187,-2034.3,0.00021643,2]
[368280074,1751087449197,-2478.78,0.00021643,2]
[368280075,1751087449207,-612.52,0.00021643,2]
[368280076,1751087449217,-460.0,0.00021643,2]
[368280077,1751087449226,-683.5,0.00021643,2]
[368280078,1751087449236,-2556.56,0.00021643,2]
[368280079,1751087449246,-474.62,0.00021643,2]
[368280080,1751087449255,-460.0,0.00021643,2]
[368280081,1751087449265,-763.79,0.00021643,2]
[368280082,1751087449275,-518.99,0.00021643,2]
[368280083,1751087449284,-466.75731154,0.00021643,2]
[368280084,1751087449294,-2327.45,0.00021643,2]
[368280085,1751087449303,-460.0,0.00021643,2]
[368280086,1751087449313,-460.0,0.00021643,2]
[368280087,1751087449322,-460.0,0.00021643,2]
[368280088,1751087449331,-2679.76,0.00021643,2]
[368280089,1751087449341,-460.0,0.00021643,2]
[368280090,1751087449350,-478.22,0.00021643,2]
[368280091,1751087449359,-460.0,0.00021643,2]
[368280092,1751087449369,-2100.28,0.00021643,2]
[368280093,1751087449378,-460.0,0.00021643,2]
[368280094,1751087449388,-460.0,0.00021643,2]
[368280095,1751087449397,-1102.85,0.00021643,2]
[368280096,1751087449406,-2998.79,0.00021643,2]
[368280097,1751087449416,-460.0,0.00021643,2]
[368280098,1751087449426,-1008.33,0.00021643,2]
[368280099,1751087449435,-460.0,0.00021643,2]
[368280100,1751087449445,-460.0,0.00021643,2]
[368280101,1751087449454,-1774.18,0.00021643,2]
[368280102,1751087449463,-460.0,0.00021643,2]
[368280103,1751087449473,-519.19,0.00021643,2]
[368280104,1751087449482,-1953.73,0.00021643,2]
[368280105,1751087449492,-2125.58,0.00021643,2]
[368280106,1751087449502,-151.0,0.00021643,2]
[368280107,1751087449511,-841.77,0.00021643,2]
[368280108,1751087449520,-1316.31,0.00021643,2]
[368280109,1751087449530,-460.0,0.00021643,2]
[368280110,1751087449539,-460.0,0.00021643,2]
[368280111,1751087449549,-756.38,0.00021643,2]
[368280112,1751087449558,-460.0,0.00021643,2]
[368280113,1751087449568,-735.92,0.00021643,2]
[368280114,1751087449577,-4060.56,0.00021643,2]
[368280115,1751087449588,-460.0,0.00021643,2]
[368280116,1751087449597,-4380.7,0.00021643,2]
[368280117,1751087449606,-151.0,0.00021643,2]
[368280118,1751087449616,-566.08,0.00021643,2]
[368280119,1751087449717,-510.75,0.00021643,2]
[368280120,1751087449738,-1874.02,0.00021643,2]
[368280121,1751087449747,-151.0,0.00021643,2]
[368280122,1751087449757,-477.85,0.00021643,2]
[368280123,1751087449766,-1714.33,0.00021643,2]
[368280124,1751087449776,-151.0,0.00021643,2]
[368280125,1751087449786,-460.0,0.00021643,2]
[368280126,1751087449795,-151.0,0.00021643,2]
[368280127,1751087449805,-1029.75,0.00021643,2]
[368280128,1751087449816,-1422.98,0.00021643,2]
[368280129,1751087449825,-987.09,0.00021643,2]
[368280130,1751087449834,-460.0,0.00021643,2]
[368280131,1751087449844,-290.0,0.00021656,2]
[368280132,1751087449855,-7001.28459087,0.00021698,2]
[368280133,1751087449864,-151.0,0.00021698,2]
[368280134,1751087449873,-151.0,0.00021698,2]
[368280135,1751087449884,-151.0,0.00021698,2]
[368280136,1751087449894,-151.0,0.00021698,2]
[368280137,1751087449904,-182.907101,0.00021698,2]
[368280138,1751087449913,-151.0,0.00021698,2]
[368280139,1751087449923,-151.0,0.00021698,2]
[368280140,1751087449932,-151.0,0.00021698,2]
[368280141,1751087449941,-151.0,0.00021698,2]
[368280142,1751087449951,-1581.21917,0.00021698,2]
[368280143,1751087449960,-1581.21917,0.00021698,2]
[368280144,1751087449969,-3797.86,0.000217,2]
[368280145,1751087449979,-151.0,0.000217,4]
[368280146,1751087449988,-304.0,0.000217,4]
[368280147,1751087449997,-406.0,0.00021727,2]
[368280148,1751087450006,-421.306,0.00021727,2]
[368280149,1751087450016,-500.0,0.0002178,17]
[368280150,1751087450025,-3000.0,0.000218,2]
[368280151,1751087450035,-151.0,0.000218,4]
[368280152,1751087450044,-3000.0,0.0002181,2]
[368280153,1751087450054,-3000.0,0.0002182,2]
[368280154,1751087450063,-3000.0,0.0002183,2]
[368280155,1751087450072,-152.91591,0.00021831,2]
[368280156,1751087450083,-151.909163,0.00021831,2]
[368280157,1751087450092,-151.0,0.00021831,2]
[368280158,1751087450102,-151.0,0.00021831,2]
[368280159,1751087450112,-8927.03936832,0.00021831,6]
[368280160,1751087450121,-3000.0,0.0002184,2]
[368280161,1751087450131,-290.0,0.00021844,2]
[368280162,1751087450140,-3000.0,0.0002185,2]
[368280163,1751087450149,-3000.0,0.0002186,2]
[368280164,1751087450159,-152.3623,0.0002186,2]
[368280165,1751087450168,-151.0,0.0002186,2]
[368280166,1751087450178,-151.0,0.0002186,2]
[368280167,1751087450187,-151.0,0.0002186,2]
[368280168,1751087450197,-151.0,0.0002186,2]
[368280169,1751087450206,-3000.0,0.0002187,2]
[368280170,1751087450216,-5673.15573393,0.00021879,2]
[368280171,1751087450225,-10066.45738228,0.0002188,2]
[368280172,1751087450360,-461.01068651,0.0002188,2]
[368280173,1751087450548,-151.0,0.00021643,2]
[368280174,1751087450559,-1045.00104646,0.0002188,2]
[368280175,1751087450570,-22386.37910639,0.0002188,2]
[368280176,1751087450579,-3000.0,0.0002188,2]
[368280177,1751087450589,-3000.0,0.0002189,2]
[368280178,1751087450599,-3000.0,0.000219,2]
[368280179,1751087450608,-2025.49537704,0.000219,2]
[368280180,1751087450618,-3000.0,0.0002191,2]
[368280181,1751087450629,-476.08,0.00021917,2]
[368280182,1751087450639,-460.0,0.00021917,2]
[368280183,1751087450650,-775.28,0.00021917,2]
[368280184,1751087450659,-460.0,0.00021917,2]
[368280185,1751087450670,-460.0,0.00021917,2]
[368280186,1751087450680,-151.0,0.00021917,2]
[368280187,1751087450689,-267.308168,0.00021917,2]
[368280188,1751087450699,-289.775614,0.00021917,2]
[368280189,1751087450707,-289.775614,0.00021917,2]
[368280190,1751087450717,-1498.86,0.00021917,2]
[368280191,1751087450727,-712.04,0.00021917,2]
[368280192,1751087450741,-460.0,0.00021917,2]
[368280193,1751087450755,-460.0,0.00021917,2]
[368280194,1751087450771,-2034.3,0.00021917,2]
[368280195,1751087450785,-2478.78,0.00021917,2]
[368280196,1751087450796,-460.0,0.00021917,2]
[368280197,1751087450810,-683.5,0.00021917,2]
[368280198,1751087450822,-2556.56,0.00021917,2]
[368280199,1751087450836,-474.62,0.00021917,2]
[368280200,1751087450850,-357.46,0.00021917,2]
[368280201,1751087450865,-763.79,0.00021917,2]
[368280202,1751087450877,-518.99,0.00021917,2]
[368280203,1751087450891,-2327.45,0.00021917,2]
[368280204,1751087450904,-341.825919,0.00021917,2]
[368280205,1751087450916,-341.825919,0.00021917,2]
[368280206,1751087450929,-460.0,0.00021917,2]
[368280207,1751087450940,-460.0,0.00021917,2]
[368280208,1751087450953,-2679.76,0.00021917,2]
[368280209,1751087450965,-460.0,0.00021917,2]
[368280210,1751087450979,-478.22,0.00021917,2]
[368280211,1751087450991,-460.0,0.00021917,2]
[368280212,1751087451001,-2100.28,0.00021917,2]
[368280213,1751087451013,-460.0,0.00021917,2]
[368280214,1751087451025,-460.0,0.00021917,2]
[368280215,1751087451038,-1102.85,0.00021917,2]
[368280216,1751087451051,-2998.79,0.00021917,2]
[368280217,1751087451065,-460.0,0.00021917,2]
[368280218,1751087451078,-1008.33,0.00021917,2]
[368280219,1751087451091,-460.0,0.00021917,2]
[368280220,1751087451105,-460.0,0.00021917,2]
[368280221,1751087451119,-1774.18,0.00021917,2]
[368280222,1751087451130,-460.0,0.00021917,2]
[368280223,1751087451141,-519.19,0.00021917,2]
[368280224,1751087451153,-1953.73,0.00021917,2]
[368280225,1751087451165,-2125.58,0.00021917,2]
[368280226,1751087451181,-841.77,0.00021917,2]
[368280227,1751087451194,-1316.31,0.00021917,2]
[368280228,1751087451204,-460.0,0.00021917,2]
[368280229,1751087451217,-460.0,0.00021917,2]
[368280230,1751087451229,-756.38,0.00021917,2]
[368280231,1751087451243,-460.0,0.00021917,2]
[368280232,1751087451254,-735.92,0.00021917,2]
[368280233,1751087451266,-4060.56,0.00021917,2]
[368280234,1751087451277,-460.0,0.00021917,2]
[368280235,1751087451290,-3164.61357048,0.00021917,2]
[368280236,1751087451306,-1080.06897964,0.00021917,2]
[368280237,1751087451391,-413.41765957,0.00019178,2]
[368280238,1751087451403,-136.01744988,0.00021917,2]
[368280239,1751087451415,-566.08,0.00021917,2]
[368280240,1751087451426,-510.75,0.00021917,2]
[368280241,1751087451437,-1874.02,0.00021917,2]
[368280242,1751087451448,-477.85,0.00021917,2]
[368280243,1751087451459,-1714.33,0.00021917,2]
[368280244,1751087451470,-460.0,0.00021917,2]
[368280245,1751087451481,-1029.75,0.00021917,2]
[368280246,1751087451492,-1299.17407852,0.00021917,2]
[368280247,1751087451507,-123.80592148,0.00021917,2]
[368280248,1751087451518,-987.09,0.00021917,2]
[368280249,1751087451529,-460.0,0.00021917,2]
[368280250,1751087451540,-3000.0,0.0002192,2]
[368280251,1751087451551,-168.0,0.00021922,2]
[368280252,1751087451562,-501.00794328,0.0002193,2]
[368280253,1751087451581,-2498.99205672,0.0002193,2]
[368280254,1751087451592,-3000.0,0.0002194,2]
[368280255,1751087451604,-304.0,0.00021942,4]
[368280256,1751087451615,-3000.0,0.0002195,2]
[368280257,1751087451627,-5000.0,0.00021956,2]
[368280258,1751087451638,-151.0,0.00021956,7]
[368280259,1751087451651,-151.0,0.00021956,7]
[368280260,1751087451663,-151.0,0.00021956,7]
[368280261,1751087451674,-151.0,0.00021956,7]
[368280262,1751087451683,-151.0,0.00021956,7]
[368280263,1751087451692,-215.32236,0.00021956,7]
[368280264,1751087451701,-151.0,0.00021956,7]
[368280265,1751087451711,-500.0,0.00021959,2]
[368280266,1751087451720,-3000.0,0.0002196,2]
[368280267,1751087451730,-3000.0,0.0002197,2]
[368280268,1751087451739,-500.0,0.00021973,2]
[368280269,1751087451748,-500.0,0.00021973,2]
[368280270,1751087451758,-500.0,0.00021973,2]
[368280271,1751087451767,-500.0,0.00021973,2]
[368280272,1751087451776,-500.0,0.00021973,2]
[368280273,1751087451786,-500.0,0.00021973,2]
[368280274,1751087451795,-500.0,0.00021973,2]
[368280275,1751087451807,-500.0,0.00021973,2]
[368280276,1751087451819,-500.0,0.00021973,2]
[368280277,1751087451828,-500.0,0.00021973,2]
[368280278,1751087451837,-500.0,0.00021973,2]
[368280279,1751087451847,-500.0,0.00021973,2]
[368280280,1751087451857,-500.0,0.00021973,2]
[368280281,1751087451867,-500.0,0.00021973,2]
[368280282,1751087451876,-500.0,0.00021973,2]
[368280283,1751087451887,-500.0,0.00021973,2]
[368280284,1751087451896,-500.0,0.00021973,2]
[368280285,1751087451905,-500.0,0.00021973,2]
[368280286,1751087451914,-551.41468978,0.00021973,2]
[368280287,1751087451924,-500.0,0.00021973,2]
[368280288,1751087451934,-500.0,0.00021973,2]
[368280289,1751087451944,-500.0,0.00021973,2]
[368280290,1751087451953,-500.0,0.00021973,2]
[368280291,1751087451962,-500.0,0.00021973,2]
[368280292,1751087451972,-500.0,0.00021973,2]
[368280293,1751087451981,-17.5877959,0.00021973,2]
[368280294,1751087452035,-151.442658,0.00021643,2]
[368280295,1751087452265,-308.557342,0.00021973,2]
[368280296,1751087452288,-173.8548621,0.00021973,2]
[368280297,1751087452298,-500.0,0.00021973,2]
[368280298,1751087452308,-500.0,0.00021973,2]
[368280299,1751087452318,-500.0,0.00021973,2]
[368280300,1751087452328,-500.0,0.00021973,2]
[368280301,1751087452337,-500.5829108,0.00021973,2]
[368280302,1751087452347,-500.0,0.00021973,2]
[368280303,1751087452357,-500.0,0.00021973,2]
[368280304,1751087452367,-500.0,0.00021973,2]
[368280305,1751087452376,-500.0,0.00021973,2]
[368280306,1751087452386,-500.0,0.00021973,2]
[368280307,1751087452395,-500.0,0.00021973,2]
[368280308,1751087452404,-500.0,0.00021973,2]
[368280309,1751087452413,-500.0,0.00021973,2]
[368280310,1751087452423,-500.0,0.00021973,2]
[368280311,1751087452432,-600.0,0.00021973,2]
[368280312,1751087452441,-153.317309,0.00021973,7]
[368280313,1751087452451,-151.0,0.00021973,7]
[368280314,1751087452460,-151.0,0.00021973,7]
[368280315,1751087452469,-151.0,0.00021973,7]
[368280316,1751087452478,-500.0,0.00021975,8]
[368280317,1751087452488,-3000.0,0.0002198,2]
[368280318,1751087452497,-500.0,0.00021983,8]
[368280319,1751087452507,-200.0,0.0002199,4]
[368280320,1751087452516,-3000.0,0.0002199,2]
[368280321,1751087452525,-100161.5954313,0.00022,2]
[368280322,1751087452534,-110784.99,0.00022,7]
[368280323,1751087452544,-20000.0,0.00022,5]
[368280324,1751087452553,-11545.9937073,0.00022,2]
[368280326,1751087562438,328.033388,0.00013699,2]
[368280327,1751087599869,164.0,0.00016438,3]
[368280328,1751087914374,162.0,0.00016438,3]
[368280333,1751088229331,160.0,0.00016438,3]
[368280334,1751088349605,160.0,0.000181,2]
[368280336,1751088360244,160.0,0.000181,2]
[368280340,1751088448093,-651.50263917,0.00019104,2]
[368280341,1751088464335,165.0,0.000181,3]
[368280342,1751088466520,165.0,0.000181,2]
[368280343,1751088520464,182.90710029,0.0002,120]
[368280344,1751088542810,157.0,0.00016438,3]
[368280351,1751088561651,345.79155,0.00013699,2]
[368280378,1751088631883,-1510.18732133,0.000189,2]
[368280380,1751088631892,-300.0,0.00019104,2]
[368280381,1751088631902,-504.0,0.00019104,2]
[368280382,1751088631911,-211.0,0.00019104,2]
[368280383,1751088631920,-8914.80148373,0.00019105,2]
[368280441,1751088637865,-15985.19851627,0.00019105,2]
[368280443,1751088637874,-460.0,0.00019178,2]
[368280445,1751088637884,-460.0,0.00019178,2]
[368280446,1751088637894,-460.0,0.00019178,2]
[368280447,1751088637903,-460.0,0.00019178,2]
[368280448,1751088637912,-430.64801119,0.00019178,2]
[368280449,1751088637921,-460.0,0.00019178,2]
[368280450,1751088637931,-460.0,0.00019178,2]
[368280451,1751088637940,-500.0,0.00019178,2]
[368280452,1751088637949,-366.37434106,0.00019178,2]
[368280453,1751088637958,-460.0,0.00019178,2]
[368280454,1751088637968,-172.15480861,0.00019178,2]
[368280455,1751088637977,-461.98865213,0.00019178,2]
[368280456,1751088637986,-460.0,0.00019178,2]
[368280457,1751088637996,-460.0,0.00019178,2]
[368280458,1751088638005,-460.0,0.00019178,2]
[368280459,1751088638015,-471.23883047,0.00019178,2]
[368280460,1751088638025,-468.54,0.00019178,2]
[368280461,1751088638035,-460.0,0.00019178,2]
[368280462,1751088638045,-463.70562929,0.00019178,2]
[368280463,1751088638223,-461.46845117,0.00019178,2]
[368280464,1751088638232,-467.14685063,0.00019178,2]
[368280465,1751088638242,-468.40724231,0.00019178,2]
[368280466,1751088638251,-468.5870426,0.00019178,2]
[368280467,1751088638260,-460.0,0.00019178,2]
[368280468,1751088638269,-167.30115301,0.00019178,2]
[368280469,1751088638278,-468.35487338,0.00019178,2]
[368280470,1751088638287,-460.0,0.00019178,2]
[368280471,1751088638296,-460.0,0.00019178,2]
[368280472,1751088638305,-460.0,0.00019178,2]
[368280473,1751088638315,-460.0,0.00019178,2]
[368280474,1751088638324,-460.0,0.00019178,2]
[368280475,1751088638336,-460.0,0.00019178,2]
[368280476,1751088638347,-460.0,0.00019178,2]
[368280477,1751088638357,-460.0,0.00019178,2]
[368280478,1751088638367,-460.0,0.00019178,2]
[368280479,1751088638376,-460.0,0.00019178,2]
[368280480,1751088638386,-460.0,0.00019178,2]
[368280481,1751088638396,-460.0,0.00019178,2]
[368280482,1751088638405,-460.0,0.00019178,2]
[368280483,1751088638416,-460.0,0.00019178,2]
[368280484,1751088638426,-460.0,0.00019178,2]
[368280485,1751088638436,-460.0,0.00019178,2]
[368280486,1751088638445,-460.0,0.00019178,2]
[368280487,1751088638455,-460.0,0.00019178,2]
[368280488,1751088638465,-523.73,0.00019178,2]
[368280489,1751088638475,-460.0,0.00019178,2]
[368280490,1751088638485,-460.0,0.00019178,2]
[368280491,1751088638499,-506.52519244,0.00019178,2]
[368280492,1751088638510,-460.0,0.00019178,2]
[368280493,1751088638519,-460.0,0.00019178,2]
[368280494,1751088638528,-460.0,0.00019178,2]
[368280495,1751088638537,-460.0,0.00019178,2]
[368280496,1751088638548,-500.0,0.00019178,2]
[368280497,1751088638559,-460.0,0.00019178,2]
[368280498,1751088638570,-698.09,0.00019178,2]
[368280499,1751088638580,-73.052171,0.00019178,2]
[368280500,1751088638594,-386.947829,0.00019178,2]